Workbook

Sheet Лист1
I1: К постановлению Администрации Североуральского городского округа от .08.2015г. №
A2: Приложение № 2 к муниципальной программе Североуральского городского округа «Развитие жилищно-коммунального хозяйства и транспортного обслуживания населения, повышение энергетической эффективности и охрана окружающей среды в Североуральском городском округе» на 2014-2020 годы
A3: План мероприятий
A4: по выполнению муниципальной программы Североуральского городского округа
A5: «Развитие жилищно-коммунального хозяйства и транспортного обслуживания населения,
A6: повышение энергетической эффективности и охрана окружающей среды в Североуральском городском округе» на 2014-2020 годы
A8: № строки | B8: Наименование мероприятия/ Источники расходов на финансирование | C8: Объем расходов на выполнение мероприятия за счет всех источников ресурсного обеспечения, тыс. руб. | K8: Номер строки целевых показателей, на достижение которых направлены мероприятия
C9: Всего | D9: первый год | E9: второй год | F9: третий год | G9: четвертый год | H9: пятый год | I9: шестой год | J9: седьмой год
B10: ВСЕГО по муниципальной программе, в том числе: | C10: =SUM(C11:C13) -> 1,060,010.0 | D10: 283,826.9 | E10: 366,977.2 | F10: 98,543.5 | G10: 76,165.6 | H10: 78,165.6 | I10: 78,165.6 | J10: 78,165.6 | K10: Х
B11: местный бюджет | C11: =SUM(D11:J11) -> 640,210.9 | D11: =SUM(D15+D19) -> 92,792.8 | E11: =SUM(E15+E19) -> 138,212.2 | F11: 98,543.5 | G11: 76,165.6 | H11: 78,165.6 | I11: 78,165.6 | J11: 78,165.6
B12: областной бюджет | C12: =SUM(D12:J12) -> 251,481.5 | D12: =SUM(D16+D20) -> 109,216.1 | E12: =SUM(E16+E20) -> 142,265.4 | F12: =SUM(F16+F20) -> 0.0 | G12: =SUM(G16+G20) -> 0.0 | H12: =SUM(H16+H20) -> 0.0 | I12: =SUM(I16+I20) -> 0.0 | J12: =SUM(J16+J20) -> 0.0
B13: федеральный бюджет | C13: =SUM(D13:J13) -> 168,317.6 | D13: =SUM(D21+D17) -> 81,818.0 | E13: =SUM(E21+E17) -> 86,499.6 | F13: 0.0 | G13: 0.0 | H13: 0.0 | I13: 0.0 | J13: 0.0
B14: Капитальные вложения | C14: =SUM(C15:C17) -> 577,841.3 | D14: =SUM(D15:D17) -> 232,761.9 | E14: =SUM(E15:E17) -> 286,566.3 | F14: 23,680.7 | G14: 8,708.1 | H14: 8,708.1 | I14: 8,708.1 | J14: 8,708.1 | K14: Х
B15: местный бюджет | C15: =SUM(D15:J15) -> 161,063.2 | D15: =D29+D94+D150+D170+D200+D233+D299+D318 -> 44,727.8 | E15: 57,822.3 | F15: 23,680.7 | G15: 8,708.1 | H15: 8,708.1 | I15: 8,708.1 | J15: 8,708.1
B16: областной бюджет | C16: =SUM(D16:J16) -> 248,460.5 | D16: =D95+D171+D30 -> 106,216.1 | E16: =E95+E171 -> 142,244.4 | F16: 0.0 | G16: 0.0 | H16: 0.0 | I16: 0.0 | J16: 0.0
B17: федеральный бюджет | C17: =SUM(D17:J17) -> 168,317.6 | D17: =D172 -> 81,818.0 | E17: =E172 -> 86,499.6 | F17: 0.0 | G17: 0.0 | H17: 0.0 | I17: 0.0 | J17: 0.0
B18: Прочие нужды | C18: =SUM(C19:C20) -> 482,168.7 | D18: =SUM(D19:D20) -> 51,065.0 | E18: =SUM(E19:E20) -> 80,410.9 | F18: 74,862.8 | G18: 67,457.5 | H18: 69,457.5 | I18: 69,457.5 | J18: 69,457.5 | K18: Х
B19: местный бюджет | C19: =SUM(D19:J19) -> 479,147.7 | D19: =D44+D125+D159+D188+D242+D308+D337+D209+D290 -> 48,065.0 | E19: 80,389.9 | F19: 74,862.8 | G19: 67,457.5 | H19: 69,457.5 | I19: 69,457.5 | J19: 69,457.5
B20: областной бюджет | C20: =SUM(D20:J20) -> 3,021.0 | D20: =SUM(D126+D336) -> 3,000.0 | E20: 21.0 | F20: 0.0 | G20: 0.0 | H20: 0.0 | I20: 0.0 | J20: 0.0
B21: федеральный бюджет | C21: =SUM(D21:J21) -> 0.0 | D21: 0.0 | E21: =E126 -> 0.0 | F21: 0.0 | G21: 0.0 | H21: 0.0 | I21: 0.0 | J21: 0.0
A22: Подпрограмма 1: Комплексное благоустройство территории Североуральского городского округа
B23: Всего по подпрограмме 1, | C23: =SUM(C25+C26) -> 195,211.7 | D23: =SUM(D25+D26) -> 25,725.2 | E23: =SUM(E25) -> 25,338.0 | F23: 30,055.3 | G23: 28,523.3 | H23: 28,523.3 | I23: 28,523.3 | J23: 28,523.3 | K23: Х
B24: в том числе:
B25: местный бюджет | C25: =SUM(D25:J25) -> 193,997.0 | D25: =SUM(D29+D44) -> 24,510.5 | E25: 25,338.0 | F25: 30,055.3 | G25: 28,523.3 | H25: 28,523.3 | I25: 28,523.3 | J25: 28,523.3
B26: областной бюджет | C26: =SUM(D26:J26) -> 1,214.7 | D26: =SUM(D30) -> 1,214.7 | E26: =SUM(E30) -> 0.0 | F26: 0.0 | G26: 0.0 | H26: 0.0 | I26: 0.0 | J26: 0.0
A27: 1. Капитальные вложения
B28: Всего по направлению «Капитальные вложения» всего, в том числе | C28: =SUM(D28:J28) -> 25,529.3 | D28: =SUM(D29+D30) -> 3,536.4 | E28: =SUM(E29) -> 580.2 | F28: 6,425.5 | G28: 3,746.8 | H28: 3,746.8 | I28: 3,746.8 | J28: 3,746.8 | K28: Х
B29: местный бюджет | C29: =SUM(D29:J29) -> 24,314.6 | D29: =SUM(D40) -> 2,321.7 | E29: =SUM(E40) -> 580.2 | F29: 6,425.5 | G29: 3,746.8 | H29: 3,746.8 | I29: 3,746.8 | J29: 3,746.8
B30: областной бюджет | C30: =SUM(D30:J30) -> 1,214.7 | D30: =SUM(D37) -> 1,214.7 | E30: =SUM(E37) -> 0.0 | F30: 0.0 | G30: 0.0 | H30: 0.0 | I30: 0.0 | J30: 0.0
A31: 1.1. Бюджетные инвестиции в объекты капитального строительства
B32: Бюджетные инвестиции в объекты капитального строительства всего, в том числе | C32: 0 | D32: 0 | E32: 0 | F32: 0 | G32: 0 | H32: 0 | I32: 0 | J32: 0 | K32: Х
B33: местный бюджет | C33: 0 | D33: 0 | E33: 0 | F33: 0 | G33: 0 | H33: 0 | I33: 0 | J33: 0
A34: 1.2. Иные капитальные вложения
B35: Всего | C35: =SUM(D35:J35) -> 25,529.3 | D35: =SUM(D36:D37) -> 3,536.4 | E35: =SUM(E36:E37) -> 580.2 | F35: 6,425.5 | G35: 3,746.8 | H35: 3,746.8 | I35: 3,746.8 | J35: 3,746.8 | K35: Х
B36: местный бюджет | C36: =SUM(D36:J36) -> 24,314.6 | D36: =SUM(D40) -> 2,321.7 | E36: =SUM(E40) -> 580.2 | F36: 6,425.5 | G36: 3,746.8 | H36: 3,746.8 | I36: 3,746.8 | J36: 3,746.8
B37: областной бюджет | C37: =SUM(D37:J37) -> 1,214.7 | D37: =SUM(D41) -> 1,214.7 | E37: =SUM(E41) -> 0.0 | F37: 0.0 | G37: 0.0 | H37: 0.0 | I37: 0.0 | J37: 0.0
A38: Мероприятие 1 Благоустройство дворовых территорий Североуральского городского округа
B39: Всего, из них | C39: =SUM(D39:J39) -> 25,529.3 | D39: =D40+D41 -> 3,536.4 | E39: =SUM(E40) -> 580.2 | F39: 6,425.5 | G39: 3,746.8 | H39: 3,746.8 | I39: 3,746.8 | J39: 3,746.8 | K39: 4
B40: местный бюджет | C40: =SUM(D40:J40) -> 24,314.6 | D40: 2,321.7 | E40: 580.2 | F40: 6,425.5 | G40: 3,746.8 | H40: =SUM(G40) -> 3,746.8 | I40: =SUM(H40) -> 3,746.8 | J40: =SUM(I40) -> 3,746.8
B41: областной бюджет | C41: =D41+E41+F41+G41+H41+I41+J41 -> 1,214.7 | D41: 1,214.7 | E41: 0.0 | F41: 0.0 | G41: 0.0 | H41: 0.0 | I41: 0.0 | J41: 0.0
A42: 3. Прочие нужды
B43: Всего по направлению «Прочие нужды», всего, в том числе: | C43: =SUM(D43:J43) -> 169,682.4 | D43: =SUM(D44) -> 22,188.8 | E43: =SUM(E44) -> 24,757.8 | F43: 23,629.8 | G43: 24,776.5 | H43: 24,776.5 | I43: 24,776.5 | J43: 24,776.5 | K43: Х | N43: =SUM(E40+E47) -> 837.2
B44: местный бюджет | C44: =SUM(D44:J44) -> 169,682.4 | D44: =SUM(D51+D54+D57+D60+D47) -> 22,188.8 | E44: =SUM(E51+E54+E57+E60+E47) -> 24,757.8 | F44: 23,629.8 | G44: 24,776.5 | H44: 24,776.5 | I44: 24,776.5 | J44: 24,776.5
A45: Мероприятие 1 Благоустройство дворовых территорий Североуральского городского округа
B46: Всего, из них | C46: =SUM(D46:J46) -> 567.9 | D46: =D47+D48 -> 310.9 | E46: =SUM(E47) -> 257.0 | F46: 0.0 | G46: 0.0 | H46: 0.0 | I46: 0.0 | J46: 0.0 | K46: 4
B47: местный бюджет | C47: =SUM(D47:J47) -> 567.9 | D47: 310.9 | E47: 257.0 | F47: 0.0 | G47: 0.0 | H47: =SUM(G47) -> 0.0 | I47: =SUM(H47) -> 0.0 | J47: =SUM(I47) -> 0.0
B48: областной бюджет | C48: =D48+E48+F48+G48+H48+I48+J48 -> 0.0 | D48: 0.0 | E48: 0.0 | F48: 0.0 | G48: 0.0 | H48: 0.0 | I48: 0.0 | J48: 0.0
A49: Мероприятие 3 - Уличное освещение
B50: Всего, из них | C50: =SUM(D50:J50) -> 90,001.0 | D50: =SUM(D51) -> 12,001.0 | E50: 12,600.0 | F50: 12,600.0 | G50: 13,200.0 | H50: 13,200.0 | I50: 13,200.0 | J50: 13,200.0 | K50: 7
B51: местный бюджет | C51: =SUM(D51:J51) -> 90,001.0 | D51: 12,001.0 | E51: 12,600.0 | F51: 12,600.0 | G51: 13,200.0 | H51: =SUM(G51) -> 13,200.0 | I51: =SUM(H51) -> 13,200.0 | J51: =SUM(I51) -> 13,200.0
A52: Мероприятие 4 - Озеленение (цветники, валка сухих деревьев)
B53: Всего, из них | C53: =SUM(D53:J53) -> 21,433.8 | D53: =SUM(D54) -> 2,890.9 | E53: 2,182.9 | F53: 3,150.0 | G53: 3,302.5 | H53: 3,302.5 | I53: 3,302.5 | J53: 3,302.5 | K53: 9
B54: местный бюджет | C54: =SUM(D54:J54) -> 21,433.8 | D54: 2,890.9 | E54: 2,182.9 | F54: 3,150.0 | G54: 3,302.5 | H54: =SUM(G54) -> 3,302.5 | I54: =SUM(H54) -> 3,302.5 | J54: =SUM(I54) -> 3,302.5
A55: Мероприятие 5 - Организация и содержание мест захоронения
B56: Всего, из них | C56: =SUM(D56:J56) -> 18,737.7 | D56: =SUM(D57) -> 2,263.1 | E56: 2,306.9 | F56: 2,724.5 | G56: 2,860.8 | H56: 2,860.8 | I56: 2,860.8 | J56: 2,860.8 | K56: 14
B57: местный бюджет | C57: =SUM(D57:J57) -> 18,737.7 | D57: 2,263.1 | E57: 2,306.9 | F57: 2,724.5 | G57: 2,860.8 | H57: =SUM(G57) -> 2,860.8 | I57: =SUM(H57) -> 2,860.8 | J57: =SUM(I57) -> 2,860.8
A58: Мероприятие 6 - Прочие мероприятия по благоустройству
B59: Всего, в том числе: | C59: =SUM(D59:J59) -> 38,942.0 | D59: =SUM(D60) -> 4,722.9 | E59: 7,411.0 | F59: =SUM(F60) -> 5,155.3 | G59: 5,413.2 | H59: 5,413.2 | I59: 5,413.2 | J59: 5,413.2 | K59: 5,9,11,12,13,15
B60: местный бюджет | C60: =SUM(D60:J60) -> 38,942.0 | D60: =SUM(D63+D66+D69+D72+D75+D81+D78+D84+D87) -> 4,722.9 | E60: 7,411.0 | F60: 5,155.3 | G60: 5,413.2 | H60: 5,413.2 | I60: 5,413.2 | J60: 5,413.2
A61: - Содержание памятников
B62: Всего: | C62: =SUM(C63) -> 2958.1 | D62: 369.2 | E62: 404.9 | F62: 420.0 | G62: 441.0 | H62: 441 | I62: 441 | J62: 441 | K62: 15
B63: местный бюджет | C63: =SUM(D63:J63) -> 2958.1 | D63: 369.2 | E63: 404.9 | F63: 420.0 | G63: 441.0 | H63: =SUM(G63) -> 441.0 | I63: =SUM(H63) -> 441.0 | J63: =SUM(I63) -> 441.0
A64: - Проведение комплекса профилактических работ по уходу за объектами благоустройства
B65: Всего: | C65: =SUM(C66) -> 8081 | D65: =SUM(D66) -> 1098.7 | E65: =SUM(E66) -> 976.1 | F65: 1155 | G65: 1212.8 | H65: 1212.8 | I65: 1212.8 | J65: 1212.8 | K65: 5
B66: местный бюджет | C66: =SUM(D66:J66) -> 8081 | D66: 1098.7 | E66: 976.1 | F66: 1,155.0 | G66: 1,212.8 | H66: =SUM(G66) -> 1,212.8 | I66: =SUM(H66) -> 1,212.8 | J66: =SUM(I66) -> 1,212.8
A67: - Регулирование численности безнадзорных животных
B68: Всего: | C68: =SUM(C69) -> 4797.3 | D68: =SUM(D69) -> 500.0 | E68: =SUM(E69) -> 831.0 | F68: 666.3 | G68: 700 | H68: 700 | I68: 700 | J68: 700 | K68: 11
B69: местный бюджет | C69: =SUM(D69:J69) -> 4797.3 | D69: 500.0 | E69: 831.0 | F69: 666.3 | G69: 700.0 | H69: 700.0 | I69: =SUM(H69) -> 700.0 | J69: =SUM(I69) -> 700.0
A70: - Содержание биоямы (скотомогильник)
B71: Всего: | C71: =SUM(C72) -> 1,004.5 | D71: =SUM(D72) -> 116.1 | E71: =SUM(E72) -> 69.3 | F71: 157.5 | G71: 165.4 | H71: 165.4 | I71: 165.4 | J71: 165.4 | K71: 13
B72: местный бюджет | C72: =SUM(D72:J72) -> 1,004.5 | D72: 116.1 | E72: 69.3 | F72: 157.5 | G72: 165.4 | H72: 165.4 | I72: =SUM(H72) -> 165.4 | J72: =SUM(I72) -> 165.4
A73: - Обустройство и эксплуатация новогодних городков
B74: Всего: | C74: =SUM(C75) -> 15,171.2 | D74: =SUM(D75) -> 1,685.5 | E74: =SUM(E75) -> 1,829.8 | F74: 2,241.5 | G74: 2,353.6 | H74: 2,353.6 | I74: 2,353.6 | J74: 2,353.6 | K74: 5
B75: местный бюджет | C75: =SUM(D75:J75) -> 15,171.2 | D75: 1,685.5 | E75: 1,829.8 | F75: 2,241.5 | G75: 2,353.6 | H75: 2,353.6 | I75: =SUM(H75) -> 2,353.6 | J75: =SUM(I75) -> 2,353.6
A76: - Приобретение декоративного освещения для улиц города Североуральска
B77: Всего: | C77: =SUM(C78) -> 2,573.4 | D77: =SUM(D78) -> 773.4 | E77: =SUM(E78) -> 1,800.0 | F77: 0.0 | G77: 0.0 | H77: 0.0 | I77: 0.0 | J77: 0.0 | K77: 5
B78: местный бюджет | C78: =SUM(D78:J78) -> 2,573.4 | D78: 773.4 | E78: 1,800.0 | F78: 0.0 | G78: 0.0 | H78: =SUM(G78) -> 0.0 | I78: =SUM(H78) -> 0.0 | J78: =SUM(I78) -> 0.0
A79: - Акарицидная обработка общественных мест
B80: Всего: | C80: =SUM(C81) -> 1830.1 | D80: =SUM(D81) -> 92.0 | E80: =SUM(E81) -> 99.9 | F80: 315.0 | G80: 330.8 | H80: 330.8 | I80: 330.8 | J80: 330.8 | K80: 12
B81: местный бюджет | C81: =SUM(D81:J81) -> 1830.1 | D81: 92.0 | E81: 99.9 | F81: 315.0 | G81: 330.8 | H81: 330.8 | I81: =SUM(H81) -> 330.8 | J81: =SUM(I81) -> 330.8
A82: - Приобретение грунта плодородного (земли садовой)
B83: Всего: | C83: =SUM(C84) -> 1126.4 | D83: =SUM(D84) -> 88.0 | E83: =SUM(E84) -> 0.0 | F83: 200 | G83: 209.6 | H83: 209.6 | I83: 209.6 | J83: 209.6 | K83: 9
B84: местный бюджет | C84: =SUM(D84:J84) -> 1126.4 | D84: 88.0 | E84: 0.0 | F84: 200.0 | G84: 209.6 | H84: =SUM(G84) -> 209.6 | I84: =SUM(H84) -> 209.6 | J84: =SUM(I84) -> 209.6
A85: - Благоустройство мест общего пользования территории Североуральского городского округа
B86: Всего: | C86: =SUM(C87) -> 1400.0 | D86: =SUM(D87) -> 0.0 | E86: =SUM(E87) -> 1400.0 | F86: 0 | G86: 0 | H86: 0 | I86: 0 | J86: 0 | K86: 5
B87: местный бюджет | C87: =SUM(D87:J87) -> 1400.0 | D87: 0.0 | E87: 1,400.0 | F87: 0.0 | G87: 0.0 | H87: 0.0 | I87: =SUM(H87) -> 0.0 | J87: =SUM(I87) -> 0.0
A88: Подпрограмма 2: Муниципальная программа по энергосбережению и повышению энергетической эффективности объектов Североуральского городского округа
B89: Всего по подпрограмме 2, в том числе | C89: =SUM(D89:J89) -> 83,557.3 | D89: =SUM(D90:D91) -> 9,165.5 | E89: 19,061.6 | F89: 10,025.0 | G89: 10,576.3 | H89: 11,576.3 | I89: 11,576.3 | J89: 11,576.3 | K89: Х
B90: местный бюджет | C90: =SUM(D90:J90) -> 66,412.9 | D90: =SUM(D94+D125) -> 2,821.1 | E90: =SUM(E94+E125) -> 8,261.6 | F90: =F94+F125 -> 10,025.0 | G90: =SUM(G94+G125) -> 10,576.3 | H90: 11,576.3 | I90: 11,576.3 | J90: 11,576.3
B91: областной бюджет | C91: =SUM(D91:J91) -> 17,144.4 | D91: =SUM(D95+D126) -> 6,344.4 | E91: =SUM(E95+E126) -> 10,800.0 | F91: =SUM(F95+F126) -> 0.0 | G91: 0.0 | H91: 0.0 | I91: 0.0 | J91: 0.0
A92: 1. Капитальные вложения
B93: Всего по направлению «Капитальные вложения», всего, в том числе | C93: =SUM(C94:C95) -> 43,043.8 | D93: 4,173.6 | E93: 14,300.0 | F93: 4,725.0 | G93: 4,961.3 | H93: 4,961.3 | I93: 4,961.3 | J93: 4,961.3 | K93: Х
B94: местный бюджет | C94: =SUM(D94:J94) -> 28,899.4 | D94: =SUM(D102) -> 829.2 | E94: =SUM(E102) -> 3,500.0 | F94: 4,725.0 | G94: 4,961.3 | H94: 4,961.3 | I94: 4,961.3 | J94: 4,961.3
B95: областной бюджет | C95: =SUM(D95:J95) -> 14,144.4 | D95: =SUM(D103) -> 3,344.4 | E95: =SUM(E103) -> 10,800.0 | F95: 0.0 | G95: 0.0 | H95: 0.0 | I95: 0.0 | J95: 0.0
A96: 1.1. Бюджетные инвестиции в объекты капитального строительства
B97: Бюджетные инвестиции в объекты капитального строительства всего, в том числе | C97: 0 | D97: 0 | E97: 0 | F97: 0 | G97: 0 | H97: 0 | I97: 0 | J97: 0 | K97: Х
B98: местный бюджет | C98: 0 | D98: 0 | E98: 0 | F98: 0 | G98: 0 | H98: 0 | I98: 0 | J98: 0
B99: областной бюджет
A100: 1.2. Иные капитальные вложения
B101: Всего, в том числе | C101: =SUM(C102:C103) -> 43,043.8 | D101: 4,173.6 | E101: 14,300.0 | F101: 4,725.0 | G101: 4,961.3 | H101: 4,961.3 | I101: 4,961.3 | J101: 4,961.3 | K101: Х
B102: местный бюджет | C102: =SUM(D102:J102) -> 28,899.4 | D102: =SUM(D106+D121) -> 829.2 | E102: 3,500.0 | F102: 4,725.0 | G102: 4,961.3 | H102: 4,961.3 | I102: 4,961.3 | J102: 4,961.3
B103: областной бюджет | C103: =SUM(D103:J103) -> 14,144.4 | D103: 3,344.4 | E103: 10,800.0 | F103: 0.0 | G103: 0.0 | H103: 0.0 | I103: 0.0 | J103: 0.0
A104: Мероприятие 7- Реконструкция, модернизация водопроводных сетей, сетей системы водоотведения с заменой (без замены) оборудования с более высоким КПД, установка регулируемого привода, реконструкция тепловых сетей, в том числе тепловых пунктов, котельных, капитальный ремонт систем коммунального хозяйства
B105: Всего, в том числе: | C105: =SUM(C106:C107) -> 41,907.6 | D105: 3,037.4 | E105: 14,300.0 | F105: 4,725.0 | G105: 4,961.3 | H105: 4,961.3 | I105: 4,961.3 | J105: 4,961.3 | K105: 27
B106: местный бюджет | C106: =SUM(D106:J106) -> 28,351.2 | D106: =SUM(D114+D118+D110) -> 281.0 | E106: 3,500.0 | F106: 4,725.0 | G106: 4,961.3 | H106: 4,961.3 | I106: 4,961.3 | J106: 4,961.3
B107: областной бюджет | C107: =SUM(D107:J107) -> 13,556.4 | D107: =SUM(D111+D115) -> 2,756.4 | E107: 10,800.0 | F107: 0.0 | G107: 0.0 | H107: 0.0 | I107: 0.0 | J107: 0.0
A108: - Реконструкция , модернизация водопроводных сетей, системы водоотведения с заменой (без замены) оборудования с более высоким КПД, установка регулируемого привода, реконструкция тепловых сетей, в том числе тепловых пунктов, котельных
B109: Всего: | C109: =SUM(C110:C111) -> 27,607.6 | D109: 3,037.4 | E109: 0.0 | F109: 4,725.0 | G109: 4,961.3 | H109: 4,961.3 | I109: 4,961.3 | J109: 4,961.3 | K109: 27
B110: местный бюджет | C110: =SUM(D110:J110) -> 24,851.2 | D110: 281.0 | E110: 0.0 | F110: 4,725.0 | G110: 4,961.3 | H110: =SUM(G110) -> 4,961.3 | I110: 4,961.3 | J110: 4,961.3
B111: областной бюджет | C111: =SUM(D111:J111) -> 2,756.4 | D111: 2,756.4 | E111: 0.0 | F111: 0.0 | G111: 0.0 | H111: 0.0 | I111: 0.0 | J111: 0.0
A112: - Реконструкция централизованной сисиемы теплоснабжения поселка Покровск-Уральский с заменой паровых котлов с истекшим сроком эксплуатации на новые водогрейные
B113: Всего: | C113: =SUM(C114:C115) -> 12,300.0 | D113: =SUM(D114:D115) -> 0.0 | E113: 12,300.0 | F113: 0.0 | G113: 0.0 | H113: 0.0 | I113: 0.0 | J113: 0.0 | K113: Х
B114: местный бюджет | C114: =SUM(D114:J114) -> 1,500.0 | D114: 0.0 | E114: 1,500.0 | F114: 0.0 | G114: 0.0 | H114: =SUM(G114) -> 0.0 | I114: 0.0 | J114: 0.0
B115: областной бюджет | C115: =SUM(D115:J115) -> 10,800.0 | D115: 0.0 | E115: 10,800.0 | F115: 0.0 | G115: 0.0 | H115: 0.0 | I115: 0.0 | J115: 0.0
A116: - Субсидии на возмещение части затрат по капитальному ремонту систем коммунального хозяйства
B117: Всего: | C117: =SUM(C118) -> 2,000.0 | D117: 0.0 | E117: 2,000.0 | F117: 0.0 | G117: 0.0 | H117: 0.0 | I117: 0.0 | J117: 0.0 | K117: Х
B118: местный бюджет | C118: =SUM(D118:J118) -> 2,000.0 | D118: 0.0 | E118: 2,000.0 | F118: 0.0 | G118: 0.0 | H118: =SUM(G118) -> 0.0 | I118: =SUM(H118) -> 0.0 | J118: =SUM(I118) -> 0.0
A119: Мероприятие 9 - Закупка и установка осветительного оборудования с заменой неэффективного на энергосберегающее, в том числе замена ламп накаливания на энергосберегающие, модернизация сетей уличного освещения, проектно-сметные работы, экспертиза проектно-сметной документации
B120: всего, из них: | C120: =SUM(C121:C122) -> 1,136.2 | D120: =SUM(D121:D122) -> 1,136.2 | E120: =SUM(E121:E122) -> 0.0 | F120: 0.0 | G120: 0.0 | H120: 0.0 | I120: 0.0 | J120: 0.0 | K120: 26
B121: местный бюджет | C121: =SUM(D121:J121) -> 548.2 | D121: 548.2 | E121: 0.0 | F121: 0.0 | G121: 0.0 | H121: =SUM(G121) -> 0.0 | I121: 0.0 | J121: 0.0
B122: областной бюджет | C122: =SUM(D122:J122) -> 588.0 | D122: 588.0 | E122: 0.0 | F122: 0.0 | G122: 0.0 | H122: 0.0 | I122: 0.0 | J122: 0.0
A123: 3. Прочие нужды
B124: Всего по направлению «Прочие нужды», всего, в том числе: | C124: =SUM(D124:J124) -> 40,513.5 | D124: =SUM(D125:D126) -> 4,991.9 | E124: =SUM(E125:E126) -> 4,761.6 | F124: 5,300.0 | G124: 5,615.0 | H124: 6,615.0 | I124: 6,615.0 | J124: 6,615.0 | K124: Х
B125: местный бюджет | C125: =SUM(D125:J125) -> 37,513.5 | D125: =SUM(D129+D134+D138+D144+D141) -> 1,991.9 | E125: 4,761.6 | F125: 5,300.0 | G125: 5,615.0 | H125: 6,615.0 | I125: 6,615.0 | J125: 6,615.0
B126: областной бюджет | C126: =SUM(D126:J126) -> 3,000.0 | D126: =SUM(D135+D130) -> 3,000.0 | E126: 0.0 | F126: 0.0 | G126: 0.0 | H126: 0.0 | I126: 0.0 | J126: 0.0
A127: Мероприятие 8 - Оснащение зданий (строений, сооружений), находящихся в муниципальной собственности, многоквартирных жилых домов, жилых помещений, квартир приборами учета используемых энергетических ресурсов, в том числе разработка проектно-сметной документации
B128: всего, в том числе: | C128: =SUM(D128:J128) -> 19,880.0 | D128: =SUM(D129:D130) -> 4,200.0 | E128: 1,300.0 | F128: 2,150.0 | G128: 2,307.5 | H128: 3,307.5 | I128: 3,307.5 | J128: 3,307.5 | K128: 19,21,22,23,24
B129: местный бюджет | C129: =SUM(D129:J129) -> 16,880.0 | D129: 1,200.0 | E129: 1,300.0 | F129: 2,150.0 | G129: 2,307.5 | H129: 3,307.5 | I129: =SUM(H129) -> 3,307.5 | J129: =SUM(I129) -> 3,307.5
B130: областной бюджет | C130: =SUM(D130:J130) -> 3,000.0 | D130: 3,000.0 | E130: =SUM(E131) -> 0.0 | F130: 0.0 | G130: 0.0 | H130: 0.0 | I130: 0.0 | J130: 0.0
B131: федеральный бюджет | C131: =SUM(D131:J131) -> 0.0 | D131: 0.0 | E131: 0.0 | F131: 0.0 | G131: =SUM(F131) -> 0.0 | H131: =SUM(G131) -> 0.0 | I131: =SUM(H131) -> 0.0 | J131: =SUM(I131) -> 0.0
A132: Мероприятие 9 - Закупка и установка осветительного оборудования с заменой неэффективного на энергосберегающее, в том числе замена ламп накаливания на энергосберегающие, модернизация сетей уличного освещения, проектно-сметные работы, экспертиза проектно-сметной документации
B133: всего, из них: | C133: =SUM(C134:C135) -> 18,191.9 | D133: =SUM(D134:D135) -> 411.9 | E133: =SUM(E134:E135) -> 1,400.0 | F133: 3,150.0 | G133: 3,307.5 | H133: 3,307.5 | I133: 3,307.5 | J133: 3,307.5 | K133: 26
B134: местный бюджет | C134: =SUM(D134:J134) -> 18,191.9 | D134: 411.9 | E134: 1,400.0 | F134: 3,150.0 | G134: 3,307.5 | H134: =SUM(G134) -> 3,307.5 | I134: 3,307.5 | J134: 3,307.5
B135: областной бюджет | C135: =SUM(D135:J135) -> 0.0 | D135: 0.0 | E135: 0.0 | F135: 0.0 | G135: 0.0 | H135: 0.0 | I135: 0.0 | J135: 0.0
A136: Мероприятие 10 - Разработка схемы водоснабжения Североуральского городского округа
B137: всего, из них: | C137: =SUM(D137:J137) -> 380.0 | D137: =SUM(D138) -> 380.0 | E137: =SUM(E138) -> 0.0 | F137: 0.0 | G137: 0.0 | H137: 0.0 | I137: 0.0 | J137: 0.0 | K137: 28
B138: местный бюджет | C138: =SUM(D138:J138) -> 380.0 | D138: 380.0 | E138: 0.0 | F138: 0.0 | G138: =SUM(F138) -> 0.0 | H138: =SUM(G138) -> 0.0 | I138: =SUM(H138) -> 0.0 | J138: =SUM(I138) -> 0.0
A139: Мероприятие 11 - Разработка и экспертиза проектно-сметной документации на строительство сетей водоснабжения микрорайонов Южный и Горный
B140: всего, из них: | C140: =SUM(D140:J140) -> 2,000.0 | D140: =SUM(D141) -> 0.0 | E140: =SUM(E141) -> 2,000.0 | F140: 0.0 | G140: 0.0 | H140: 0.0 | I140: 0.0 | J140: 0.0 | K140: 29
B141: местный бюджет | C141: =SUM(D141:J141) -> 2,000.0 | D141: 0.0 | E141: 2,000.0 | F141: 0.0 | G141: =SUM(F141) -> 0.0 | H141: =SUM(G141) -> 0.0 | I141: =SUM(H141) -> 0.0 | J141: =SUM(I141) -> 0.0
A142: Мероприятие 12 - Прочие мероприятия (оформление актов выбора трассы под строительство водопроводов, сетей уличного освещения, газопроводов и т.п.)
B143: всего, из них: | C143: =SUM(D143:J143) -> 61.6 | D143: =SUM(D144) -> 0.0 | E143: =SUM(E144) -> 61.6 | F143: 0.0 | G143: 0.0 | H143: 0.0 | I143: 0.0 | J143: 0.0 | K143: 30
B144: местный бюджет | C144: =SUM(D144:J144) -> 61.6 | D144: 0.0 | E144: 61.6 | F144: 0.0 | G144: =SUM(F144) -> 0.0 | H144: =SUM(G144) -> 0.0 | I144: =SUM(H144) -> 0.0 | J144: =SUM(I144) -> 0.0
A145: Подпрограмма 3: Развитие лесного хозяйства на территории Североуральского городского округа
B146: Всего по подпрограмме 1, всего, в том числе | C146: =SUM(C147:C147) -> 2,698.2 | D146: =SUM(D147) -> 774.1 | E146: =SUM(E147) -> 881.1 | F146: 200.6 | G146: 210.6 | H146: 210.6 | I146: 210.6 | J146: 210.6 | K146: Х
B147: местный бюджет | C147: =SUM(D147:J147) -> 2,698.2 | D147: =SUM(D159) -> 774.1 | E147: =SUM(E159) -> 881.1 | F147: 200.6 | G147: 210.6 | H147: 210.6 | I147: 210.6 | J147: 210.6
A148: 1. Капитальные вложения
B149: Всего по направлению «Капитальные вложения», всего, в том числе | C149: 0 | D149: 0 | E149: 0 | F149: 0 | G149: 0 | H149: 0 | I149: 0 | J149: 0 | K149: Х
B150: местный бюджет | C150: 0 | D150: 0 | E150: 0 | F150: 0 | G150: 0 | H150: 0 | I150: 0 | J150: 0
A151: 1.1. Бюджетные инвестиции в объекты капитального строительства
B152: Бюджетные инвестиции в объекты капитального строительства всего, в том числе: | C152: =SUM(C153) -> 0 | D152: =SUM(D153) -> 0 | E152: 0 | F152: 0 | G152: 0 | H152: 0 | I152: 0 | J152: 0 | K152: Х
B153: местный бюджет | C153: 0 | D153: 0 | E153: 0 | F153: 0 | G153: 0 | H153: 0 | I153: 0 | J153: 0
A154: 1.2. Иные капитальные вложения
B155: Всего, в том числе: | C155: =SUM(A157) -> 0 | D155: 0 | E155: 0 | F155: 0 | G155: 0 | H155: 0 | I155: 0 | J155: 0 | K155: Х
B156: местный бюджет | C156: 0 | D156: 0 | E156: 0 | F156: 0 | G156: 0 | H156: 0 | I156: 0 | J156: 0
A157: 3. Прочие нужды
B158: Всего, из них | C158: =SUM(C159:C159) -> 2,698.2 | D158: 774.1 | E158: 881.1 | F158: 200.6 | G158: 210.6 | H158: 210.6 | I158: 210.6 | J158: 210.6 | K158: Х
B159: местный бюджет | C159: =SUM(D159:J159) -> 2,698.2 | D159: =SUM(D162) -> 774.1 | E159: =SUM(E162) -> 881.1 | F159: 200.6 | G159: 210.6 | H159: 210.6 | I159: 210.6 | J159: 210.6
A160: Мероприятие 13 - Развитие лесного хозяйства на территории Североуральского городского округа
B161: Всего, в том числе: | C161: =SUM(D161:J161) -> 2,698.2 | D161: =SUM(D162) -> 774.1 | E161: =SUM(E162) -> 881.1 | F161: 200.6 | G161: 210.6 | H161: 210.6 | I161: 210.6 | J161: 210.6 | K161: 34
B162: местный бюджет | C162: =SUM(D162:J162) -> 2,698.2 | D162: 774.1 | E162: 881.1 | F162: 200.6 | G162: 210.6 | H162: =SUM(G162) -> 210.6 | I162: =SUM(H162) -> 210.6 | J162: =SUM(I162) -> 210.6
A163: Подпрограмма 4 : Переселение граждан на территории Североуральского городского округа из аварийного жилищного фонда
B164: Всего по подпрограмме 4, всего, в том числе | C164: =SUM(C165:C167) -> 504,505.2 | D164: =SUM(D165:D167) -> 223,750.0 | E164: 271,225.0 | F164: 9,530.2 | G164: 0.0 | H164: 0.0 | I164: 0.0 | J164: 0.0 | K164: Х
B165: местный бюджет | C165: =SUM(D165:J165) -> 103,086.2 | D165: =SUM(D170+D188) -> 40,275.0 | E165: =SUM(E170+E188) -> 53,281.0 | F165: 9,530.2 | G165: 0.0 | H165: 0.0 | I165: 0.0 | J165: 0.0
B166: областной бюджет | C166: =SUM(D166:J166) -> 233,101.4 | D166: =SUM(D171) -> 101,657.0 | E166: =SUM(E171) -> 131,444.4 | F166: 0.0 | G166: 0.0 | H166: 0.0 | I166: 0.0 | J166: 0.0
B167: федеральный бюджет | C167: =SUM(D167:J167) -> 168,317.6 | D167: =SUM(D172) -> 81,818.0 | E167: =SUM(E172) -> 86,499.6 | F167: 0.0 | G167: 0.0 | H167: 0.0 | I167: 0.0 | J167: 0.0
A168: 1. Капитальные вложения
B169: Всего по направлению «Капитальные вложения», всего, в том числе | C169: =SUM(C170:C172) -> 503,205.2 | D169: =SUM(D170:D172) -> 223,750.0 | E169: =SUM(E170:E172) -> 269,925.0 | F169: 9,530.2 | G169: 0.0 | H169: 0.0 | I169: 0.0 | J169: 0.0 | K169: Х
B170: местный бюджет | C170: =SUM(D170:J170) -> 101,786.2 | D170: =SUM(D183) -> 40,275.0 | E170: =SUM(E183) -> 51,981.0 | F170: 9,530.2 | G170: 0.0 | H170: 0.0 | I170: 0.0 | J170: 0.0
B171: областной бюджет | C171: =SUM(D171:J171) -> 233,101.4 | D171: =SUM(D184) -> 101,657.0 | E171: =SUM(E184) -> 131,444.4 | F171: 0.0 | G171: 0.0 | H171: 0.0 | I171: 0.0 | J171: 0.0
B172: федеральный бюджет | C172: =SUM(D172:J172) -> 168,317.6 | D172: =SUM(D185) -> 81,818.0 | E172: =SUM(E185) -> 86,499.6 | F172: 0.0 | G172: 0.0 | H172: 0.0 | I172: 0.0 | J172: 0.0
A173: 1.1. Бюджетные инвестиции в объекты капитального строительства
B174: Бюджетные инвестиции в объекты капитального строительства всего, в том числе: | C174: =SUM(C175) -> 0 | D174: =SUM(D175) -> 0 | E174: 0 | F174: 0 | G174: 0 | H174: 0 | I174: 0 | J174: 0 | K174: Х
B175: местный бюджет | C175: 0 | D175: 0 | E175: 0 | F175: 0 | G175: 0 | H175: 0 | I175: 0 | J175: 0
A176: 1.2. Иные капитальные вложения
B177: Всего, в том числе: | C177: =SUM(D177:J177) -> 489,645.1 | D177: =SUM(D178:D180) -> 210,189.9 | E177: =SUM(E178:E180) -> 269,925.0 | F177: 9,530.2 | G177: 0.0 | H177: 0.0 | I177: 0.0 | J177: 0.0 | K177: Х
B178: местный бюджет | C178: =SUM(D178:J178) -> 101,786.2 | D178: =SUM(D183) -> 40,275.0 | E178: 51,981.0 | F178: 9,530.2 | G178: 0.0 | H178: 0.0 | I178: 0.0 | J178: 0.0
B179: областной бюджет | C179: =SUM(D179:J179) -> 233,101.4 | D179: =SUM(D184) -> 101,657.0 | E179: =SUM(E184) -> 131,444.4 | F179: 0.0 | G179: 0.0 | H179: 0.0 | I179: 0.0 | J179: 0.0
B180: федеральный бюджет | C180: =SUM(D180:J180) -> 154,757.5 | D180: 68,257.9 | E180: =SUM(E185) -> 86,499.6 | F180: 0.0 | G180: 0.0 | H180: 0.0 | I180: 0.0 | J180: 0.0
A181: Мероприятие 14 - Переселение граждан на территории Североуральского городского округа из аварийного жилищного фонда
B182: Всего по направлению «Капитальные вложения», всего, в том числе | C182: =SUM(D182:J182) -> 503,205.2 | D182: =SUM(D183:D185) -> 223,750.0 | E182: =SUM(E183:E185) -> 269,925.0 | F182: 9,530.2 | G182: 0.0 | H182: 0.0 | I182: 0.0 | J182: 0.0 | K182: 38.40
B183: местный бюджет | C183: =SUM(D183:J183) -> 101,786.2 | D183: 40,275.0 | E183: 51,981.0 | F183: 9,530.2 | G183: 0.0 | H183: 0.0 | I183: 0.0 | J183: 0.0
B184: областной бюджет | C184: =SUM(D184:J184) -> 233,101.4 | D184: 101,657.0 | E184: 131,444.4 | F184: 0.0 | G184: 0 | H184: 0 | I184: 0 | J184: 0
B185: федеральный бюджет | C185: =SUM(D185:J185) -> 168,317.6 | D185: 81,818.0 | E185: 86,499.6 | F185: 0.0 | G185: 0 | H185: 0 | I185: 0 | J185: 0
A186: 3. Прочие нужды
B187: Всего, в том числе: | C187: =SUM(D187:J187) -> 1,300.0 | D187: =SUM(D188) -> 0.0 | E187: =SUM(E188) -> 1,300.0 | F187: 0.0 | G187: 0.0 | H187: 0.0 | I187: 0.0 | J187: 0.0 | K187: Х
B188: местный бюджет | C188: =SUM(C191+C194) -> 1,300.0 | D188: 0.0 | E188: 1,300.0 | F188: 0.0 | G188: 0.0 | H188: 0.0 | I188: 0.0 | J188: 0.0
A189: Мероприятие 15 - Осуществление сноса аварийных домов и высвобождение земельных участков под новое жилищное строительство
B190: Всего, из них | C190: =SUM(D190:J190) -> 800.0 | D190: =SUM(D191) -> 0.0 | E190: =SUM(E191) -> 800.0 | F190: 0.0 | G190: 0.0 | H190: 0.0 | I190: 0.0 | J190: 0.0 | K190: 41
B191: местный бюджет | C191: =SUM(D191:J191) -> 800.0 | D191: 0.0 | E191: 800.0 | F191: 0.0 | G191: 0.0 | H191: 0.0 | I191: 0.0 | J191: 0.0
A192: Мероприятие 15.1. - Обследование жилищного фонда на предмет признания его аварийным
B193: Всего, из них | C193: =SUM(D193:J193) -> 500.0 | D193: =SUM(D194) -> 0.0 | E193: =SUM(E194) -> 500.0 | F193: 0.0 | G193: 0.0 | H193: 0.0 | I193: 0.0 | J193: 0.0 | K193: 41
B194: местный бюджет | C194: =SUM(D194:J194) -> 500.0 | D194: 0.0 | E194: 500.0 | F194: 0.0 | G194: 0.0 | H194: 0.0 | I194: 0.0 | J194: 0.0
A195: Подпрограмма 5 : Содержание и капитальный ремонт общего имущества муниципального жилищного фонда на территории Североуральского городского округа
B196: Всего по подпрограмме 5, в том числе | C196: =C197 -> 126,099.7 | D196: =D197 -> 9,057.0 | E196: =E197 -> 20,287.3 | F196: 17,991.4 | G196: 18,941.0 | H196: 19,941.0 | I196: 19,941.0 | J196: 19,941.0 | K196: Х
B197: местный бюджет | C197: =SUM(D197:J197) -> 126,099.7 | D197: =SUM(D209) -> 9,057.0 | E197: =SUM(E209) -> 20,287.3 | F197: 17,991.4 | G197: 18,941.0 | H197: 19,941.0 | I197: 19,941.0 | J197: 19,941.0
A198: 1. Капитальные вложения
B199: Всего по направлению «Капитальные вложения», всего, в том числе | C199: =SUM(C200) -> 0 | D199: =SUM(D200) -> 0 | E199: 0 | F199: 0 | G199: 0 | H199: 0 | I199: 0 | J199: 0 | K199: Х
B200: местный бюджет | C200: 0 | D200: 0 | E200: 0 | F200: 0 | G200: 0 | H200: 0 | I200: 0 | J200: 0
A201: 1.1. Бюджетные инвестиции в объекты капитального строительства
... 148 more rows

Sheet Лист2

Sheet Лист3
